[Event "FIDE Womens Candidates 2024"]
[Site "Toronto"]
[Date "2024.04.05"]
[Round "2.3"]
[White "Salimova, Nurgyul"]
[Black "Lei, Tingjie"]
[Result "1/2-1/2"]
[ECO "D27"]
[WhiteElo "2432"]
[BlackElo "2550"]
[Annotator "TA"]
[PlyCount "76"]
[EventDate "2024.04.02"]
[EventType "tourn"]
[EventCountry "CAN"]
[SourceTitle "playchess.com"]
[Source "ChessBase"]
[SourceQuality "1"]
[TimeControl "40/5400+30:1800+30"]

{[%evp 12,76,25,31,33,13,18,17,31,36,29,28,28,5,16,24,9,0,3,0,0,0,0,0,8,12,17,8,12,0,4,0,0,0,0,0,0,0,0,0,8,0,0,0,0,0,0,0,0,0,0,0,0,0,0,0,0,0,0,0,0,0,0,0,0,0,0]} 1. d4 {[%emt 0:00:05]} d5 {[%emt 0:00:18]} 2. c4 {[%emt 0:00:35]} dxc4 {[%emt 0:00:18]} 3. Nf3 {[%emt 0:00:43]} Nf6 {[%emt 0:00:33]} 4. e3 {[%emt 0:00:19]} e6 {[%emt 0:00:06]} 5. Bxc4 {[%emt 0:00:13]} c5 {[%emt 0:00:06]} 6. O-O {[%emt 0:00:29]} a6 {[%emt 0:00:05]} 7. b3 {[%emt 0:00:28]} cxd4 {[%emt 0:01:10]} 8. Qxd4 {[%emt 0:03:22]} Qxd4 {[%emt 0:04:11]} 9. Nxd4 {[%emt 0:00:08]} b5 {[%emt 0:09:36]} 10. Be2 {[%emt 0:02:00]} Bb7 {[%emt 0:00:05]} 11. Bb2 {[%emt 0:03:38]} Nbd7 {[%emt 0:00:42]} 12. Nd2 {[%emt 0:02:55]} Bb4 {[%emt 0:06:17]} 13. Bf3 {[%emt 0:09:41]} Nd5 {[%emt 0:02:13]} 14. Ne4 {[%emt 0:19:34] The position is equal.} O-O {[%emt 0:08:57]} 15. a4 {[%emt 0:02:42]} bxa4 {[%emt 0:01:16]} 16. Rxa4 {[%emt 0:01:04]} a5 {[%emt 0:11:27]} 17. Ba3 {[%emt 0:08:07]} N7b6 {[%emt 0:05:19] [#]} 18. Bxb4 $1 {[%emt 0:00:08]} Nxb4 {[%emt 0:00:05]} 19. Raa1 {[%emt 0:03:44][%cal Oe4f6]} Bd5 {[%emt 0:00:59]} 20. Nc3 {[%emt 0:06:38]} Bxf3 {[%emt 0:01:07]} 21. gxf3 {[%emt 0:00:22]} Rfc8 {[%emt 0:03:34]} 22. Ne4 {[%emt 0:02:11]} Nc2 {[%emt 0:04:26]} 23. Nxc2 {[%emt 0:03:14]} Rxc2 {[%emt 0:00:05]} 24. Rfc1 {[%emt 0:00:42]} Rxc1+ {[%emt 0:07:08]} 25. Rxc1 $11 {[%emt 0:00:05][%mdl 4096] Endgame. KRN-KRN} Nd5 {[%emt 0:01:04]} 26. Rc5 {[%emt 0:09:30]} h6 {[%emt 0:02:22]} 27. f4 {[%emt 0:01:43]} a4 {[%emt 0:02:35]} 28. bxa4 {[%emt 0:00:05]} Rxa4 {[%emt 0:00:04]} 29. Ng3 {[%emt 0:01:24]} Ne7 {[%emt 0:04:25]} 30. f5 {[%emt 0:00:41]} Nxf5 {[%emt 0:00:08]} 31. Nxf5 {[%emt 0:00:06]} exf5 {[%emt 0:00:07]} 32. Rxf5 {[%emt 0:00:03] KR-KR} g6 {[%emt 0:00:14]} 33. Rc5 {[%emt 0:00:10]} h5 {[%emt 0:00:14]} 34. Kg2 {[%emt 0:00:15]} Rg4+ {[%emt 0:00:09]} 35. Kf1 {[%emt 0:00:47]} Rh4 {[%emt 0:00:12]} 36. Kg2 {[%emt 0:00:06]} Rg4+ {[%emt 0:00:03]} 37. Kf1 {[%emt 0:00:06]} Rh4 {[%emt 0:00:05]} 38. Kg2 {[%emt 0:00:03]} Rg4+ {[%emt 0:00:47] Weighted Error Value: White=0.02 (flawless) /Black=0.01 (flawless) .  OK:         	White=15    	Black=13     Strong:       	White=1     	---} 1/2-1/2

[Event "FIDE Womens Candidates 2024"]
[Site "Toronto"]
[Date "2024.04.07"]
[Round "4.3"]
[White "Salimova, Nurgyul"]
[Black "Koneru, Humpy"]
[Result "1-0"]
[ECO "E06"]
[WhiteElo "2432"]
[BlackElo "2546"]
[Annotator "TA"]
[PlyCount "123"]
[EventDate "2024.04.02"]
[EventType "tourn"]
[EventCountry "CAN"]
[SourceTitle "playchess.com"]
[Source "ChessBase"]
[SourceQuality "1"]
[TimeControl "40/5400+30:1800+30"]

{[%evp 26,123,0,0,35,34,25,29,19,25,22,22,31,19,62,74,63,39,56,42,129,132,106,91,142,116,220,248,232,240,235,230,283,281,275,280,310,304,319,307,306,214,295,254,268,271,294,287,290,277,271,282,296,291,300,304,289,295,305,287,298,301,291,275,298,300,351,343,399,385,446,429,467,457,569,560,482,385,564,506,789,789,764,734,871,770,2306,1893,1904,1842,29972,29973,29979,29980,29980,29980,29981,29982,29982,29975]} 1. d4 {[%emt 0:00:05]} Nf6 {[%emt 0:00:16]} 2. c4 {[%emt 0:00:15]} e6 {[%emt 0:00:12]} 3. Nf3 {[%emt 0:00:13]} d5 {[%emt 0:00:31]} 4. g3 {[%emt 0:00:08]} Be7 {[%emt 0:00:35]} 5. Bg2 {[%emt 0:00:15]} Ne4 {[%emt 0:00:31]} 6. O-O {[%emt 0:01:29] E06: Closed Catalan: Early deviations.} f5 {[%emt 0:00:29] 6...f5 scores better than 6...0-0.} 7. b3 {[%emt 0:02:53]} Nc6 {[%emt 0:01:09]} 8. Ba3 {[%emt 0:11:25]} Bf6 {[%emt 0:02:46]} 9. e3 {[%emt 0:11:16]} h5 {[%emt 0:03:15]} 10. Nfd2 {[%emt 0:08:55]} h4 {[%emt 0:07:43]} 11. Nxe4 {[%emt 0:02:28]} dxe4 {[%emt 0:00:08]} 12. Nc3 {[%emt 0:00:50]} hxg3 {[%emt 0:13:52]} 13. hxg3 {[%emt 0:01:33]} Qd7 {[%emt 0:11:26]} 14. Rc1 $146 {[%emt 0:05:12]} ({Predecessor:} 14. Qc2 g5 15. Rfd1 Qh7 16. Kf1 Bd7 17. b4 O-O 18. b5 Ne7 19. Rac1 Be8 20. d5 {½-½ Chan,K (2326)-Borrmann,L (2292) Ceske Budejovice GM-B 2023 (7)}) 14... Qf7 {[%emt 0:11:58]} 15. f3 $1 {[%emt 0:19:36]} exf3 {[%emt 0:06:09]} 16. Qxf3 {[%emt 0:04:27]} Bd7 {[%emt 0:03:01]} 17. Nb5 {[%emt 0:02:22]} Rc8 {[%emt 0:10:28]} 18. Rcd1 {[%emt 0:08:22]} Qg6 {[%emt 0:11:52]} 19. Nc3 {[%emt 0:07:50]} (19. Kf2 {simplifies} Qh5 20. Rh1 Qxf3+ 21. Bxf3 Rxh1 22. Rxh1 Kf7 23. Bh5+) 19... Kf7 {[%emt 0:02:57]} 20. Ne2 {[%emt 0:00:46]} Qh6 {[%emt 0:03:50]} 21. e4 {[%emt 0:01:51]} g5 {[%emt 0:03:07]} 22. Kf2 {[%emt 0:06:01]} g4 {[%emt 0:02:23]} (22... Qh5 $14) 23. Qc3 $16 {[%emt 0:00:30]} fxe4 {[%emt 0:00:17]} 24. Ke1 {[%emt 0:00:29]} Kg7 {[%emt 0:01:06]} (24... Kg8 $142) 25. Bxe4 $16 {[%emt 0:01:06]} Qg5 {[%emt 0:01:18]} (25... Kg8 $16) 26. Bc1 $18 {[%emt 0:00:31]} Qa5 {[%emt 0:00:14]} 27. Qxa5 {[%emt 0:00:47]} Nxa5 {[%emt 0:00:02]} 28. Rf4 {[%emt 0:00:28]} Rh2 {[%emt 0:00:42]} 29. Rxg4+ {[%emt 0:00:12]} Kh8 {[%emt 0:00:13]} 30. Rg6 {[%emt 0:02:03]} Bg7 {[%emt 0:00:43]} 31. Bf4 {[%emt 0:00:17]} Nc6 {[%emt 0:00:27]} 32. g4 {[%emt 0:00:44]} Rh3 {[%emt 0:00:56]} 33. Rg5 {[%emt 0:00:42]} Rf8 {[%emt 0:00:47]} 34. Bg2 {[%emt 0:00:30]} Rh7 {[%emt 0:00:44]} 35. Bxc7 {[%emt 0:00:43]} Bh6 {[%emt 0:00:34]} 36. Rh5 {[%emt 0:00:21]} Be8 {[%emt 0:00:17]} 37. Rh3 {[%emt 0:00:32]} Bg6 {[%emt 0:00:36]} 38. Bd6 {[%emt 0:00:33]} Rd8 {[%emt 0:00:13]} 39. Bf4 {[%emt 0:00:25]} Bxf4 {[%emt 0:01:29]} 40. Nxf4 {[%emt 0:00:00]} Rxh3 {[%emt 0:00:00]} 41. Bxh3 {[%emt 0:07:53]} Bc2 {[%emt 0:01:04]} 42. Rd2 {[%emt 0:00:34]} Rxd4 {[%emt 0:05:12]} 43. Nxe6 {[%emt 0:02:02]} Re4+ {[%emt 0:00:06]} 44. Kf2 {[%emt 0:01:53]} Rxe6 {[%emt 0:02:05]} 45. Rxc2 {[%emt 0:00:06]} Nb4 {[%emt 0:00:59]} 46. Rd2 {[%emt 0:00:23]} Ra6 {[%emt 0:00:07]} 47. a4 {[%emt 0:02:51]} Rb6 {[%emt 0:06:38]} 48. a5 {[%emt 0:04:08]} Rf6+ {[%emt 0:04:02]} 49. Kg3 {[%emt 0:00:22]} b6 {[%emt 0:01:12]} 50. Rd7 {[%emt 0:01:09]} bxa5 {[%emt 0:03:32]} 51. Rxa7 {[%emt 0:02:11]} Nc6 {[%emt 0:03:16]} (51... Ra6 $142 52. Rd7 Kg8) 52. g5 $18 {[%emt 0:04:39]} Rg6 {[%emt 0:02:14]} (52... Rf8 $142) 53. Ra8+ $18 {[%emt 0:00:15]} Kg7 {[%emt 0:00:09]} 54. Kf4 {[%emt 0:00:45]} Nd4 {[%emt 0:01:39]} 55. Rxa5 {[%emt 0:01:44]} Nxb3 {[%emt 0:00:07]} 56. Ra7+ {[%emt 0:00:05]} Kf8 {[%emt 0:00:20]} 57. Bg2 {[%emt 0:02:59]} Rb6 {[%emt 0:03:57]} 58. Bd5 {[%emt 0:00:33]} Nc5 {[%emt 0:00:33]} 59. Kf5 {[%emt 0:00:47]} Rb1 {[%emt 0:00:29]} 60. g6 {[%emt 0:02:29]} Rf1+ {[%emt 0:00:39]} 61. Ke5 {[%emt 0:00:26]} Rg1 {[%emt 0:01:17]} 62. Rf7+ {[%emt 0:00:10]} 1-0

[Event "FIDE Womens Candidates 2024"]
[Site "Toronto"]
[Date "2024.04.10"]
[Round "6.1"]
[White "Salimova, Nurgyul"]
[Black "Goryachkina, Aleksandra"]
[Result "0-1"]
[ECO "E05"]
[WhiteElo "2432"]
[BlackElo "2553"]
[Annotator "TA"]
[PlyCount "120"]
[EventDate "2024.04.02"]
[EventType "tourn"]
[EventCountry "CAN"]
[SourceTitle "playchess.com"]
[Source "ChessBase"]
[SourceQuality "1"]
[TimeControl "40/5400+30:1800+30"]

{[%evp 18,120,20,12,9,0,0,0,7,0,0,0,0,0,3,0,4,0,0,0,0,-22,-22,-12,-10,-18,-13,-12,-7,-14,-8,-30,-10,-30,-23,-62,-64,-89,-85,-88,-83,-77,-82,-79,-79,-81,-76,-85,-49,-50,-41,-61,-43,-72,-68,-79,-74,-81,-49,-47,-52,-50,-54,-54,-39,-42,-44,-62,-52,-110,-74,-74,-64,-93,-91,-100,-80,-158,-176,-162,-135,-481,-472,-482,-468,-5591,-1582,-5730,-5369,-4874,-4631,-29960,-12695,-29969,-29969,-29969,-29965,-29972,-29974,-29970,-29970,-29979,-29980,-29986,-29987]} 1. d4 {[%emt 0:00:03]} d5 {[%emt 0:00:18]} 2. c4 {[%emt 0:00:07]} e6 {[%emt 0:00:15]} 3. Nf3 {[%emt 0:00:14]} Nf6 {[%emt 0:00:21]} 4. g3 {[%emt 0:00:20]} Be7 {[%emt 0:00:39]} 5. Bg2 {[%emt 0:00:08]} O-O {[%emt 0:00:23]} 6. O-O {[%emt 0:00:26]} dxc4 {[%emt 0:00:47]} 7. Qc2 {[%emt 0:00:30]} a6 {[%emt 0:00:38]} 8. a4 {[%emt 0:02:29]} Bd7 {[%emt 0:00:39]} 9. Qxc4 {[%emt 0:00:38]} Bc6 {[%emt 0:00:50]} 10. Bg5 {[%emt 0:00:14]} Nbd7 {[%emt 0:01:14]} 11. Bxf6 {[%emt 0:05:52]} Nxf6 {[%emt 0:02:04]} 12. Nc3 {[%emt 0:01:16]} Qd6 {[%emt 0:07:22] The position is equal.} 13. Rac1 {[%emt 0:12:11]} Rfd8 {[%emt 0:03:55]} 14. Rfd1 {[%emt 0:05:37]} Rac8 {[%emt 0:02:40]} 15. e3 {[%emt 0:04:52]} Bd5 {[%emt 0:09:59]} 16. Nxd5 {[%emt 0:06:43]} exd5 {[%emt 0:01:20]} 17. Qb3 {[%emt 0:08:04]} Rb8 {[%emt 0:01:15]} 18. Ne5 {[%emt 0:00:32][%cal Bf3e5,Be5d3,Bd3c5][%mdl 32]} c6 {[%emt 0:02:12]} 19. Bh3 {[%emt 0:02:52]} Qc7 {[%emt 0:03:50]} 20. Nd3 {[%emt 0:06:17]} Bd6 {[%emt 0:01:24]} 21. Qc2 {[%emt 0:03:40]} a5 {[%emt 0:02:19]} 22. Bg2 {[%emt 0:08:36]} Re8 {[%emt 0:02:06]} 23. Nc5 {[%emt 0:01:29]} g6 {[%emt 0:02:31]} 24. Rb1 {[%emt 0:01:22]} Qe7 {[%emt 0:05:25]} 25. Rdc1 {[%emt 0:00:45]} h5 {[%emt 0:04:54][%cal Oh5h4]} 26. Qe2 {[%emt 0:13:42] [#]} h4 $1 {[%emt 0:04:25]} 27. b4 {[%emt 0:02:06]} (27. g4 Nd7) 27... axb4 {[%emt 0:01:34]} 28. a5 {[%emt 0:00:06]} hxg3 {[%emt 0:04:55]} 29. hxg3 {[%emt 0:00:05]} Ra8 {[%emt 0:01:58]} 30. Rxb4 {[%emt 0:04:28]} Bxc5 {[%emt 0:01:06]} 31. dxc5 {[%emt 0:00:51]} Rxa5 {[%emt 0:00:49][%cal Ob7b5] White must now prevent ...b5!} 32. Qb2 {[%emt 0:00:33]} Rxc5 {[%emt 0:02:26]} 33. Rxc5 {[%emt 0:00:18]} Qxc5 {[%emt 0:00:02]} 34. Rxb7 {[%emt 0:02:46]} Qd6 {[%emt 0:02:09]} 35. Qb6 {[%emt 0:03:15]} Ng4 {[%emt 0:04:26]} 36. Qc7 {[%emt 0:01:06]} Qf6 {[%emt 0:02:31]} 37. Qf4 {[%emt 0:00:19]} Qxf4 {[%emt 0:04:50]} (37... Qa1+ {with more complications.} 38. Bf1 Ne5 39. Rb6 Qa7) 38. gxf4 $17 {[%emt 0:00:04][%mdl 4096] Endgame. KRB-KRN} Ra8 {[%emt 0:00:41]} 39. Bf3 {[%emt 0:01:33]} Ra1+ {[%emt 0:01:40]} 40. Kg2 {[%emt 0:00:00]} Nf6 {[%emt 0:00:00]} 41. Rb6 {[%emt 0:12:10]} Rc1 {[%emt 0:02:48]} 42. Kg3 {[%emt 0:00:04]} Kg7 {[%emt 0:01:52]} 43. Kh4 {[%emt 0:00:27]} (43. Kg2 $15) 43... Rc2 {[%emt 0:01:58]} 44. Kg3 {[%emt 0:07:10]} Kf8 {[%emt 0:01:46]} 45. Rb1 {[%emt 0:02:46]} Ke7 {[%emt 0:01:28]} 46. Rb7+ {[%emt 0:01:24]} Ke6 {[%emt 0:01:18]} 47. Bg2 {[%emt 0:01:40]} ({Better is} 47. Ra7) 47... Nh5+ {[%emt 0:03:26]} 48. Kf3 {[%emt 0:00:13]} f5 $1 {[%emt 0:01:17]} 49. Bh3 $2 {[%emt 0:02:54][%mdl 8192] Now White is beyond hope.} (49. Rc7 $17 {is more resistant.}) 49... Nf6 $19 {[%emt 0:13:36]} 50. Rg7 {[%emt 0:00:44] [#]} Ne4 $1 {[%emt 0:00:51][%csl Ge4][%cal Rc2f2]} 51. Rxg6+ {[%emt 0:00:05] [#]} (51. Kg2 $142 Kf6 (51... Nxf2 52. Rxg6+ Kf7 53. Bxf5 $11) (51... Rxf2+ $2 52. Kg1 $19) 52. Ra7) 51... Kf7 $1 {[%emt 0:00:11]} 52. Rg2 {[%emt 0:00:27]} Kf6 {[%emt 0:01:00]} 53. Rh2 {[%emt 0:00:14]} c5 {[%emt 0:00:43]} 54. Bf1 {[%emt 0:03:16]} c4 {[%emt 0:00:31] ( -> ...Rd2)} 55. Be2 {[%emt 0:00:43]} Rd2 {[%emt 0:01:24] Black mates.} 56. Rh6+ {[%emt 0:05:45]} Ke7 {[%emt 0:00:24]} 57. Rh7+ {[%emt 0:01:09]} Kd6 {[%emt 0:00:27]} 58. Rh6+ {[%emt 0:00:24]} Kc5 {[%emt 0:00:47]} 59. Rh5 {[%emt 0:01:01]} c3 {[%emt 0:00:46]} 60. Rxf5 {[%emt 0:00:04]} c2 {[%emt 0:00:18] Weighted Error Value: White=0.53/Black=0.04 (flawless) .  Loses game:     	White=1     	---        Mistake:       	White=3     	---        Inaccurate:     	White=3     	Black=3      OK:         	White=14    	Black=12     Best:        	White=2     	Black=5      Strong:       	---       	Black=3      Brilliant:      	---       	Black=1} 0-1

[Event "FIDE Womens Candidates 2024"]
[Site "Toronto"]
[Date "2024.04.13"]
[Round "8.4"]
[White "Salimova, Nurgyul"]
[Black "Muzychuk, Anna"]
[Result "1/2-1/2"]
[ECO "E01"]
[WhiteElo "2432"]
[BlackElo "2520"]
[Annotator "ChessBase"]
[PlyCount "240"]
[EventDate "2024.04.02"]
[EventType "tourn"]
[EventCountry "CAN"]
[SourceTitle "playchess.com"]
[Source "ChessBase"]
[SourceQuality "1"]
[TimeControl "40/5400+30:1800+30"]

1. d4 {[%emt 0:01:15]} d5 {[%emt 0:00:08]} 2. c4 {[%emt 0:00:14]} e6 {[%emt 0:00:07]} 3. Nf3 {[%emt 0:00:08]} Nf6 {[%emt 0:00:07]} 4. g3 {[%emt 0:00:04]} c5 {[%emt 0:00:12]} 5. cxd5 {[%emt 0:00:19]} cxd4 {[%emt 0:00:23]} 6. Qa4+ {[%emt 0:07:33]} Bd7 {[%emt 0:03:17]} 7. Qxd4 {[%emt 0:00:07]} Nxd5 {[%emt 0:05:09]} 8. Bg2 {[%emt 0:06:56]} Nc6 {[%emt 0:01:17]} 9. Qd1 {[%emt 0:03:13]} Be7 {[%emt 0:04:39]} 10. O-O {[%emt 0:00:14]} O-O {[%emt 0:00:12]} 11. a3 {[%emt 0:09:21]} Qb6 {[%emt 0:08:28]} 12. e4 {[%emt 0:02:40]} Nf6 {[%emt 0:00:06]} 13. Nc3 {[%emt 0:03:30]} Rfd8 {[%emt 0:01:47]} 14. Qe2 {[%emt 0:01:44]} Be8 {[%emt 0:04:44]} 15. Be3 {[%emt 0:01:47]} Qa6 {[%emt 0:12:04]} 16. Qxa6 {[%emt 0:05:20]} bxa6 {[%emt 0:00:01]} 17. h3 {[%emt 0:02:20]} Nd7 {[%emt 0:06:11]} 18. Rfd1 {[%emt 0:02:04]} Na5 {[%emt 0:05:48]} 19. Bf1 {[%emt 0:03:11]} Nb3 {[%emt 0:01:45]} 20. Rab1 {[%emt 0:00:15]} Ndc5 {[%emt 0:05:03]} 21. Nd4 {[%emt 0:14:59]} Nxd4 {[%emt 0:01:23]} 22. Rxd4 {[%emt 0:01:08]} Rxd4 {[%emt 0:02:53]} 23. Bxd4 {[%emt 0:00:13]} a5 {[%emt 0:07:35]} 24. b4 {[%emt 0:04:52]} axb4 {[%emt 0:00:06]} 25. axb4 {[%emt 0:00:18]} Nb7 {[%emt 0:06:03]} 26. Ba6 {[%emt 0:09:51]} Nd6 {[%emt 0:07:33]} 27. Bc5 {[%emt 0:00:19]} Kf8 {[%emt 0:04:36]} 28. Rd1 {[%emt 0:02:40]} Nc8 {[%emt 0:00:00]} 29. Nb5 {[%emt 0:06:20]} Bxc5 {[%emt 0:06:46]} 30. Nc7 {[%emt 0:03:18]} Bxb4 {[%emt 0:03:00]} 31. Nxa8 {[%emt 0:00:48]} Nb6 {[%emt 0:00:03]} 32. Rb1 {[%emt 0:04:35]} Ba5 {[%emt 0:03:06]} 33. Nc7 {[%emt 0:00:23]} Bc6 {[%emt 0:00:08]} 34. f3 {[%emt 0:01:55]} Nd7 {[%emt 0:01:32]} 35. Bb5 {[%emt 0:03:03]} Bxc7 {[%emt 0:00:19]} 36. Bxc6 {[%emt 0:00:05]} Ne5 {[%emt 0:00:10]} 37. Kg2 {[%emt 0:01:20]} Nxc6 {[%emt 0:00:33]} 38. Rc1 {[%emt 0:00:01]} Bxg3 {[%emt 0:00:05]} 39. Kxg3 {[%emt 0:00:30]} Nd4 {[%emt 0:00:16]} 40. Rc8+ {[%emt 0:00:00]} Ke7 {[%emt 0:00:00]} 41. Rc7+ {[%emt 0:00:57]} Kf6 {[%emt 0:00:14]} 42. Rxa7 {[%emt 0:00:07]} g5 {[%emt 0:05:54]} 43. Ra2 {[%emt 0:02:13]} Nc6 {[%emt 0:01:30]} 44. h4 {[%emt 0:03:11]} h6 {[%emt 0:01:01]} 45. f4 {[%emt 0:01:49]} gxf4+ {[%emt 0:00:09]} 46. Kxf4 {[%emt 0:00:07]} Ne5 {[%emt 0:00:58]} 47. Ra5 {[%emt 0:07:15]} Nd3+ {[%emt 0:00:18]} 48. Kg4 {[%emt 0:00:34]} Kg6 {[%emt 0:00:21]} 49. Rb5 {[%emt 0:01:54]} h5+ {[%emt 0:03:28]} 50. Kf3 {[%emt 0:01:24]} f6 {[%emt 0:00:26]} 51. Ke3 {[%emt 0:00:36]} Ne5 {[%emt 0:00:08]} 52. Rc5 {[%emt 0:04:13]} Ng4+ {[%emt 0:03:22]} 53. Kd4 {[%emt 0:01:19]} Ne5 {[%emt 0:05:49]} 54. Rc3 {[%emt 0:00:20]} Kf7 {[%emt 0:01:17]} 55. Kc5 {[%emt 0:02:45]} Ng6 {[%emt 0:01:48]} 56. Kd6 {[%emt 0:00:41]} Nxh4 {[%emt 0:01:17]} 57. Rh3 {[%emt 0:00:41]} Ng6 {[%emt 0:02:18]} 58. Rxh5 {[%emt 0:00:07]} Nf4 {[%emt 0:00:22]} 59. Rh7+ {[%emt 0:02:45]} Kg6 {[%emt 0:00:07]} 60. Rh1 {[%emt 0:01:16]} Kf7 {[%emt 0:01:06]} 61. Rg1 {[%emt 0:05:32]} Nh3 {[%emt 0:01:58]} 62. Rf1 {[%emt 0:00:57]} e5 {[%emt 0:00:27]} 63. Kd5 {[%emt 0:01:40]} Nf4+ {[%emt 0:00:13]} 64. Kd6 {[%emt 0:00:18]} Nh3 {[%emt 0:00:04]} 65. Ra1 {[%emt 0:00:37]} Ng5 {[%emt 0:03:08]} 66. Kd5 {[%emt 0:00:05]} Nh3 {[%emt 0:01:31]} 67. Rh1 {[%emt 0:00:14]} Ng5 {[%emt 0:00:40]} 68. Rf1 {[%emt 0:00:14]} Nh3 {[%emt 0:00:28]} 69. Rf3 {[%emt 0:00:33]} Ng5 {[%emt 0:00:29]} 70. Re3 {[%emt 0:00:13]} Kg6 {[%emt 0:00:29]} 71. Kd6 {[%emt 0:00:19]} f5 {[%emt 0:00:52]} 72. exf5+ {[%emt 0:00:12]} Kxf5 {[%emt 0:00:05]} 73. Rxe5+ {[%emt 0:00:04]} Kf4 {[%emt 0:00:10]} 74. Ra5 {[%emt 0:00:06]} Ne4+ {[%emt 0:00:26]} 75. Kd5 {[%emt 0:00:08]} Nf6+ {[%emt 0:00:05]} 76. Kd4 {[%emt 0:00:08]} Ng4 {[%emt 0:00:20]} 77. Ra6 {[%emt 0:00:11]} Kf5 {[%emt 0:00:07]} 78. Ra1 {[%emt 0:00:07]} Nf6 {[%emt 0:00:06]} 79. Re1 {[%emt 0:00:07]} Ng4 {[%emt 0:00:17]} 80. Rf1+ {[%emt 0:00:07]} Ke6 {[%emt 0:00:05]} 81. Rf4 {[%emt 0:00:11]} Nf6 {[%emt 0:00:06]} 82. Rh4 {[%emt 0:00:04]} Kf5 {[%emt 0:00:14]} 83. Rh1 {[%emt 0:00:05]} Ke6 {[%emt 0:00:09]} 84. Rf1 {[%emt 0:00:08]} Nd7 {[%emt 0:00:15]} 85. Re1+ {[%emt 0:00:18]} Kd6 {[%emt 0:00:05]} 86. Ra1 {[%emt 0:00:06]} Ke6 {[%emt 0:00:07]} 87. Ra6+ {[%emt 0:00:10]} Kf5 {[%emt 0:00:04]} 88. Rd6 {[%emt 0:00:15]} Nf6 {[%emt 0:00:04]} 89. Rc6 {[%emt 0:00:08]} Ng4 {[%emt 0:00:05]} 90. Rc1 {[%emt 0:00:14]} Nf6 {[%emt 0:00:04]} 91. Re1 {[%emt 0:00:05]} Ng4 {[%emt 0:00:11]} 92. Re2 {[%emt 0:00:29]} Nf6 {[%emt 0:00:05]} 93. Re5+ {[%emt 0:00:10]} Kf4 {[%emt 0:00:04]} 94. Ra5 {[%emt 0:00:07]} Ng4 {[%emt 0:00:16]} 95. Ra1 {[%emt 0:00:11]} Kf5 {[%emt 0:00:00]} 96. Rf1+ {[%emt 0:00:33]} Ke6 {[%emt 0:00:05]} 97. Rf3 {[%emt 0:00:06]} Nf6 {[%emt 0:00:05]} 98. Rf4 {[%emt 0:00:08]} Nd7 {[%emt 0:00:05]} 99. Re4+ {[%emt 0:00:13]} Kd6 {[%emt 0:00:06]} 100. Re1 {[%emt 0:00:11]} Nf6 {[%emt 0:00:05]} 101. Re5 {[%emt 0:00:13]} Nd7 {[%emt 0:00:09]} 102. Ra5 {[%emt 0:00:10]} Ke6 {[%emt 0:00:07]} 103. Ra7 {[%emt 0:00:26]} Nf6 {[%emt 0:00:06]} 104. Ra6+ {[%emt 0:00:09]} Kf5 {[%emt 0:00:04]} 105. Rd6 {[%emt 0:00:15]} Ng4 {[%emt 0:00:06]} 106. Rd7 {[%emt 0:00:14]} Nf6 {[%emt 0:00:07]} 107. Re7 {[%emt 0:00:04]} Ng4 {[%emt 0:00:07]} 108. Re4 {[%emt 0:00:20]} Nf6 {[%emt 0:00:05]} 109. Re5+ {[%emt 0:00:03]} Kf4 {[%emt 0:00:04]} 110. Ra5 {[%emt 0:00:04]} Ng4 {[%emt 0:00:08]} 111. Rh5 {[%emt 0:00:21]} Nf6 {[%emt 0:00:06]} 112. Rh1 {[%emt 0:00:16]} Kf5 {[%emt 0:00:04]} 113. Re1 {[%emt 0:00:12]} Ng4 {[%emt 0:00:05]} 114. Ra1 {[%emt 0:00:24]} Nf6 {[%emt 0:00:07]} 115. Ra6 {[%emt 0:00:07]} Ng4 {[%emt 0:00:06]} 116. Ra5+ {[%emt 0:00:11]} Kf4 {[%emt 0:00:05]} 117. Kd5 {[%emt 0:00:13]} Ne3+ {[%emt 0:00:21]} 118. Ke6 {[%emt 0:00:07]} Ke4 {[%emt 0:00:11]} 119. Ra4+ {[%emt 0:00:05]} Kd3 {[%emt 0:00:11]} 120. Ke5 {[%emt 0:00:10]} Nc4+ {[%emt 0:00:06]} 1/2-1/2